Cogmind - Beta 17.1 @@@ ROGUE MODE // 2026.09.04 @ 18:51:13 Player: operation hog fire Result: Destroyed by exploding Nuclear Reactor Performance ------------- Evolutions (1) 500 Regions Visited (2) 400 Robots Destroyed (34) 170 Value Destroyed (525) 525 Prototype IDs (1) 20 Alien Tech Used (0) 0 Bonus (5850) 5850 TOTAL SCORE: 7465 Bonus ------- Prayed to X0-1V1 5000 Major X0-1V1 Interference 850 Cogmind --------- Core Integrity 0/300 Matter 300/300 Energy 99/100 System Corruption 0% Temperature Cool (0) Movement Rolling (110) Ox2 Location -9/Materials Parts ------- > --- POWER (1) -------- (None) > --- PROPULSION (2) --- Wheel > --- UTILITY (3) ------ Large Storage Unit X0-1V1's Piety Tracker > --- WEAPON (3) ------- (None) > --- INVENTORY (15) --- Armored Treads Armored Treads Armored Treads Wheel High-capacity Matter Pod (200) Improved Terrain Scanner Improved Terrain Scanner Seismic Detector Seismic Detector Transport Network Coupler Mace Heavy Hammer Peak State ------------ > --- POWER ------------ Light Ion Engine > --- PROPULSION ------- Armored Treads Wheel > --- UTILITY ---------- Improved Heat Sink Large Storage Unit X0-1V1's Piety Tracker > --- WEAPON ----------- Spread Laser Spread Laser Light Assault Rifle > --- INVENTORY -------- Ion Engine Armored Treads Wheel Wheel High-capacity Matter Pod Improved Terrain Scanner Improved Terrain Scanner Seismic Detector Seismic Detector Transport Network Coupler Mace Heavy Hammer [Rating: 29] Favorites ----------- Power Light Ion Engine Engine Light Ion Engine Propulsion Aluminum Leg Treads Light Treads Leg Aluminum Leg Wheel Wheel Utility Improved Heat Sink Device Improved Heat Sink Storage Large Storage Unit Weapon Spread Laser Energy Gun Spread Laser Ballistic Gun Light Assault Rifle Build | -11 -10 -9 ------- Run | Yrd Mat Mat Slots Evolved 2 | . . 2 Power . | . . . Propulsion 1 | . . 1 Utility 1 | . . 1 Weapon . | . . . Parts Attached 17 | 2 7 8 Power 1 | . . 1 Engine 1 | . . 1 Core . | . . . Reactor . | . . . Propulsion 5 | . . 5 Treads 2 | . . 2 Leg . | . . . Wheel 3 | . . 3 Hover . | . . . Flight . | . . . Utility 8 | 2 5 1 Device 5 | 2 2 1 Storage 3 | . 3 . Processor . | . . . Hackware . | . . . Protection . | . . . Artifact . | . . . Weapon 3 | . 2 1 Energy Gun 2 | . 2 . Energy Cannon . | . . . Ballistic Gun 1 | . . 1 Ballistic Cannon . | . . . Launcher . | . . . Special Weapon . | . . . Impact Weapon . | . . . Slashing Weapon . | . . . Piercing Weapon . | . . . Special Melee Weapon . | . . . Unidentified Prototypes 1 | . 1 . Parts Lost 9 | . . 9 Power 2 | . . 2 Propulsion 3 | . . 3 Utility 1 | . . 1 Weapon 3 | . . 3 Highest Loss Streak 7 | . . 7 To Critical Strikes . | . . . Average Backups 9 | 6 9 10 Power . | 1 1 . Propulsion 2 | 4 2 2 Utility 3 | . 3 4 Weapon 2 | 1 1 2 Tool/Special . | . . . Unused Backups 15 | . 5 10 Power . | . . . Propulsion 5 | . . 5 Utility 5 | . 2 3 Weapon 5 | . 3 2 Tool/Special . | . . . Average Slot Usage (%) 97 | . 100 95 Engine 12 | . 14 10 Treads 3 | . . 8 Leg 20 | . 28 10 Wheel 3 | . . 8 Device 17 | . 13 21 Storage 12 | . 14 11 Energy Gun 23 | . 26 19 Ballistic Gun 2 | . 1 3 Peak Build Rating 29 | 9 22 29 Average Rating 17 | 7 14 25 On Entrance 12 | 6 9 22 Avg Prop Armor Cover (%) 13 | . . 13 Naked Turns . | . . . Heaviest Build 34 | 11 30 34 Greatest Support 20 | 20 20 20 Greatest Overweight (x) 3 | . 1 3 Average Overweight (x) . | . . 2 Largest Inventory Capacity 15 | 8 15 15 Average Capacity 11 | 8 9 15 Most Carried 14 | 8 10 14 Average Carried 9 | 6 9 10 Final Capacity 15 | 8 15 15 Final Carried 12 | 8 10 12 Class Distribution -------------------- 88% | Mutant 11% | Gunner Dominant Class ---------------- Mutant | -10/Materials Mutant | -9/Materials Resources | -11 -10 -9 ----------- Run | Yrd Mat Mat Matter Collected 596 | 250 236 110 Remotely 51 | 51 . . Salvage Created 915 | 245 377 293 Parts 69 | 13 17 39 Haulers Intercepted 3 | . 2 1 Recyclers Shooed 2 | . . 2 Parts Field Recycled . | . . . Retrieved Matter . | . . . Parts Self-Destructed . | . . . Prevented . | . . . Parts Restored . | . . . Kills | -11 -10 -9 ------- Run | Yrd Mat Mat Combat Hostiles Destroyed 18 | . 4 14 Guns 18 | . 4 14 Classes Destroyed 8 | 3 3 2 Worker 3 | 2 . 1 Tunneler 5 | 4 . 1 Hauler 3 | . 2 1 Recycler 3 | 1 2 . Watcher 2 | . 1 1 Swarmer 10 | . . 10 Grunt 5 | . 4 1 Sentry 3 | . . 3 Best Kill Streak 9 | 3 2 9 Combat Bots Only 8 | . 2 8 Max Kills in Single Turn 2 | 1 1 2 Gunslinging 1 | . . 1 Exploded . | . . . Melee . | . . . Uniques/NPCs Destroyed . | . . . Combat | -11 -10 -9 -------- Run | Yrd Mat Mat Hostile Shots Fired 152 | . 13 139 Missed 41 | . 5 36 Hits 111 | . 8 103 Melee 2 | . . 2 Projectile 109 | . 8 101 Critical Strikes 2 | . 1 1 Damage Taken 1383 | . 112 1271 Core 372 | . 49 323 Absorbed by Shields . | . . . Ignored by Resistances 31 | . . 31 Core Remaining (%) 100 | 100 100 . Volleys Fired 91 | 30 18 43 Largest 3 | 2 2 3 Hottest 150 | 60 130 150 Shots Fired 175 | 58 36 81 Gun 175 | 58 36 81 Cannon . | . . . Launcher . | . . . Special . | . . . Kinetic 52 | 30 . 22 Thermal 123 | 28 36 59 Explosive . | . . . Electromagnetic . | . . . Robot Hit Streak 12 | 7 12 11 Robot Miss Streak 10 | 3 10 8 Penetration Max . | . . . Secondary Targets 2 | . . 2 Max Gunslinging Chain 1 | . . 1 Shots Hit Robots 133 | 35 30 68 Core Hits 112 | 11 44 57 Critical Kills 1 | 1 . . Critical Parts Destroyed . | . . . Critical Strikes 1 | 1 . . Destroy 1 | 1 . . Melee Attacks . | . . . Impact . | . . . Slashing . | . . . Piercing . | . . . Sneak Attacks . | . . . Combat Hostiles . | . . . Follow-up Attacks . | . . . Damage Inflicted 1533 | 337 390 806 Guns 1522 | 337 390 795 Cannons . | . . . Explosions . | . . . Melee . | . . . Ramming 11 | . . 11 Kinetic 318 | 172 . 146 Thermal 1204 | 165 390 649 Explosive . | . . . Electromagnetic . | . . . Impact . | . . . Slashing . | . . . Piercing . | . . . Highest Corruption 2 | . 2 . Average Corruption 2 | . 2 . Corruption Purged . | . . . Corruption Blocked . | . . . Effects 4 | . 4 . Message Errors 1 | . 1 . Heat Flow Errors 2 | . 2 . Alerts 1 | . 1 . Overload Shots . | . . . Overflow Damage . | . . . Projectiles . | . . . Explosions . | . . . Melee . | . . . Knockbacks . | . . . Impact . | . . . Kinetic . | . . . Secondary . | . . . Self-Inflicted Damage . | . . . Shots . | . . . Rammed 4 | . . 4 Targets Rammed 4 | . . 4 Kicked . | . . . Crushed . | . . . Highest Temperature 362 | 80 362 207 Average Temperature 82 | 34 124 73 Received Heat Transfer 462 | . 84 378 Effects 1 | . . 1 Energy Bleed 1 | . . 1 Siege Activations . | . . . Martial Activations . | . . . Shielding Activations . | . . . Robots Disrupted . | . . . Combat Hostiles . | . . . Robots Corrupted . | . . . Combat Hostiles . | . . . Parts Fried . | . . . Impact Corruptions . | . . . Robots Melted . | . . . Combat Hostiles . | . . . Parts Melted 1 | . 1 . Heat Transferred 1665 | 375 480 810 Parts Sabotaged . | . . . Parts Stolen . | . . . Parts Stripped . | . . . Power Chain Reactions . | . . . Alert | -11 -10 -9 ------- Run | Yrd Mat Mat Maximum Alert Level 1 | . . 1 Low Security (%) 87 | 100 100 65 Level 1 12 | . . 34 Level 2 . | . . . Level 3 . | . . . Level 4 . | . . . Level 5 . | . . . High Security . | . . . Max Security . | . . . Peak Influence 253 | 15 42 253 Initial 10 | . 3 10 Average 47 | 3 6 116 Influence Increases 563 | 35 143 385 Destroy 0b10 Robot/C 360 | . 80 280 Destroy 0b10 Robot/NC 80 | 35 25 20 Destroy Leader 90 | . 26 64 Successful Hack 18 | . 12 6 Lose Combat Pursuer 15 | . . 15 Influence Decreases 448 | 30 122 296 Entered New Map 18 | . 2 16 Time Decay 340 | 30 120 190 Lost Part 90 | . . 90 Squads Dispatched . | . . . Investigation . | . . . Extermination . | . . . Reinforcement . | . . . Assault . | . . . Garrison . | . . . Intercept . | . . . Searches Triggered . | . . . Construction Impeded . | . . . Haulers Reinforced . | . . . Active Scanning Responses . | . . . Cargo Convoy Interrupts . | . . . Stealth | -11 -10 -9 --------- Run | Yrd Mat Mat Distress Signals 5 | . 1 4 Communications Jammed . | . . . Distress Signals . | . . . Times Spotted 34 | . 6 28 Peak Tracking Total 9 | . 3 9 Tactical Retreats 1 | . . 1 Traps | -11 -10 -9 ------- Run | Yrd Mat Mat Traps Triggered 1 | . 1 . Indirectly . | . . . Trap Hack Attempts . | . . . Triggered . | . . . Disarmed . | . . . Reprogrammed . | . . . Reused . | . . . Traps Extracted . | . . . Installed . | . . . Triggered . | . . . Machines | -11 -10 -9 ---------- Run | Yrd Mat Mat Machines Disabled . | . . . Max in Single Turn . | . . . Machines Repaired . | . . . Machines Dismantled . | . . . Machines Sabotaged . | . . . Overloaded Fab Kills . | . . . Hacking | -11 -10 -9 --------- Run | Yrd Mat Mat Machines Accessed 7 | . 4 3 Terminals 6 | . 4 2 Fabricators . | . . . Repair Stations . | . . . Recycling Units . | . . . Scanalyzers 1 | . . 1 Garrison Access . | . . . Total Hacks 19 | . 11 8 Successful 7 | . 4 3 Failed 12 | . 7 5 Catastrophic 1 | . 1 . Database Lockouts . | . . . Manual 7 | . 7 . Terminals 18 | . 11 7 Fabricators . | . . . Repair Stations . | . . . Recycling Units . | . . . Scanalyzers 1 | . . 1 Garrison Access . | . . . Terminal Hacks 7 | . 4 3 Robot Analysis 1 | . . 1 Branch Access Points 1 | . 1 . Locate Traps 2 | . 1 1 Maintenance Status 1 | . 1 . Hauler Manifests 1 | . 1 . Zone Layout 1 | . . 1 Fabricator Hacks . | . . . Repair Station Hacks . | . . . Recycling Unit Hacks . | . . . Scanalyzer . | . . . Garrison Access Hacks . | . . . Unauthorized Hacks . | . . . Terminals . | . . . Fabricators . | . . . Repair Stations . | . . . Recycling Units . | . . . Scanalyzers . | . . . Garrison Access . | . . . Data Cores Recovered . | . . . Used . | . . . Hacking Detections 6 | . 3 3 Full Trace Events 1 | . 1 . Feedback Events . | . . . Feedback Blocked . | . . . Robot Schematics Acquired . | . . . Robots Built . | . . . Authchips . | . . . Time . | . . . Total Robot Build Rating . | . . . Part Schematics Acquired . | . . . Parts Built . | . . . Authchips . | . . . Time . | . . . Total Part Build Rating . | . . . Part Studies Acquired . | . . . Parts Repaired . | . . . Time . | . . . Parts Recycled . | . . . Recycled Matter . | . . . Retrieved Matter . | . . . Retrieved Components . | . . . Parts Scanalyzed . | . . . Part Schematics Acquired . | . . . Parts Damaged . | . . . Bothacking | -11 -10 -9 ------------ Run | Yrd Mat Mat Used RIF Installer . | . . . Robots Hacked . | . . . Non-combat . | . . . Combat . | . . . Robot Hacks Applied . | . . . Relay Couplers Released . | . . . Fabnet Peak Effective % . | . . . Robots Rewired . | . . . Allies Hacked . | . . . Hacks Repelled . | . . . Allies | -11 -10 -9 -------- Run | Yrd Mat Mat Total Allies . | . . . Largest Group . | . . . Highest-Rated Group . | . . . Highest-Rated Ally . | . . . Total Orders . | . . . Ally Attacks . | . . . Total Damage . | . . . Kills . | . . . Allies Corrupted . | . . . Allies Melted . | . . . X0-1V1 Amusement Gains 21 | . 21 . Average Entertainment 12 | . 16 11 Good Acts 6 | . 1 5 Bad Acts 4 | . . 4 Intel | -11 -10 -9 ------- Run | Yrd Mat Mat Active Infowar (turns) 316 | 53 157 106 Terrain 210 | 53 157 . Seismic 106 | . . 106 Robot Analysis Total 1 | . . 1 Derelict Logs Recovered . | . . . Drone Launches . | . . . Drone Recoveries . | . . . Exploration | -11 -10 -9 ------------- Run | Yrd Mat Mat Turns Passed 1274 | 142 647 485 Spaces Moved 719 | 38 433 248 Core . | . . . Treads 5 | . . 5 Legs 513 | 38 433 42 Wheels 201 | . . 201 Hover . | . . . Flight . | . . . Fastest Speed 95 | 120 120 95 Average Speed 128 | 120 126 133 Slowest Speed 330 | 120 190 330 Overloaded Moves . | . . . Propulsion Burnouts . | . . . Robots Hopped . | . . . Potential Cave-ins . | . . . Cave-ins Triggered . | . . . Exploration Rate (%) 35 | 4 67 36 Regions Visited 2 Branch Regions . Pre-discovered Areas . | . . . Known Exits Taken . | . . . Unknown Exits Taken 2 | 1 1 . Scrap Searched . | . . . Spaces Dug . | . . . Terrain Destroyed . | . . . Melee . | . . . Projectile . | . . . AOE . | . . . Terrain Rammed . | . . . Walls Destroyed . | . . . Machines Disabled . | . . . Actions | -11 -10 -9 --------- Run | Yrd Mat Mat Total 907 | 82 501 324 Wait 47 | 9 29 9 Move 717 | 37 432 248 Hop . | . . . Pick Up 14 | 2 6 6 Fast Attach 5 | 2 1 2 Attach 5 | . . 5 Detach 3 | 1 1 1 Swap 10 | . 6 4 Drop 11 | 1 8 2 Fire 91 | 30 18 43 Melee . | . . . Ram . | . . . Kick . | . . . Crush 4 | . . 4 Escape Stasis . | . . . Rewire . | . . . Trap . | . . . Miscellaneous . | . . . Route ------- -11/Scrapyard -10/Materials (discovered 2 exits: *Mat / *Min) -9/Materials (discovered 3 exits: [*Mat] / *Min x2) History --------- Turn | Location | Event 2 | -11/Scrapyard | Discovered new exit (range 3) 143 | -11/Scrapyard | Entered Materials 164 | -10/Materials | Identified exit to Mines 335 | -10/Materials | Build established: Mutant 616 | -10/Materials | Prayed at D.C.S.S. Altar Unit 754 | -10/Materials | Energy generation permanently improved by X0-1V1 (+10; -100 max core) 775 | -10/Materials | Discovered new exit (range 10) 790 | -10/Materials | Entered another Materials area 790 | -9/Materials | Evolved 2 slots: Propulsion x1, Utility x1 883 | -9/Materials | Identified exit to Mines 883 | -9/Materials | X0-1V1 revealed exit location to -9/Mines 1034 | -9/Materials | Destroyed 8 combat bots 1065 | -9/Materials | Discovered exit to Mines (range 15) 1089 | -9/Materials | X0-1V1 mutated your Propulsion slot to Weapon slot 1123 | -9/Materials | Discovered new exit (range 16) 1234 | -9/Materials | Core integrity fell below 50% 1269 | -9/Materials | Core integrity fell below 20% 1275 | -9/Materials | Destroyed by exploding Nuclear Reactor Last Messages --------------- 01218_ K-01 Serf collects debris. 01223_ Spread Laser destroyed. 01224_ K-01 Serf collects debris. 01235_ Wheel destroyed. 01236_ K-01 Serf destroyed. 01237_ X0-1V1: "The ol' switcheroo!" G-34 Mercenary form resolidifies at new position. M-13 Machinist form resolidifies at new position. Form resolidifies at new position. 01243_ K-01 Serf collects debris. 01245_ X0-1V1 manipulates the space around you (+18% KI resistance). 01251_ Lgt. Assault Rifle destroyed. 01254_ Ion Engine destroyed. 01255_ Slammed into G-34 Mercenary. 01258_ Imp. Heat Sink destroyed. 01260_ Slammed into G-34 Mercenary. 01273_ Arm. Treads destroyed. 01275_ X0-1V1: "Fire in the hole!" 01275_ G-34 Mercenary destroyed. 01275_ X0-1V1 laughs nastily! Map ----- +----------------------------------------------------+ | ?????????????????????????????????????????????????? | | ?????????????????????????????????????????????????? | | ?????????????????????????????????????????????????? | | ?????##+##???????????????????????????????????????? | | ?????# #???????????????????????????????????????? | | ????? +???????????????????????????????????????? | | ?????# #???????????????????????????????????????? | | ?????# #????#??????????????????????????????????? | | ####?# #??? #?????????????###???????????>??????? | | #?# #?? ??######??????!!#??????????????????? | | #?# ###+### #????? !!#??????????????????? | | #?# ###### !!#??????????????????? | | #?# = !!#??????????????????? | | #?# !% ## ### !!#??????????????????? | | #?# ####### ## #?? !!#??????????????????? | | #?# #????????????# #???###??????????????????? | | #?# #????????????# #?????###????????????????? | | ### ##???????????# #???? #????????????????? | | #+### = #???????????# #???? [ #????????????????? | | #???????????#Y#??? #????????????????? | | T +???????????# #??? #????????????????? | | % #???????????# ### #????????????????? | | #+### #???????????#g # #????????????????? | | ## ##???????????# + #????????????????? | | ## #????????????# # #????????????????? | | ## #????????????# @ #????????????????? | | ## #??????????# #####????????????????? | | ## ??????? ????????????????????? | | ## ?????# % ????????????????????? | | #? ????# | Y ????????????????????? | | #? ####???# ????????????????????? | | #? #??????# ????????????????????? | | #####? #??????# ????????????????????? | | ??????? ????????# ### ????????????????????? | | ????????????????#####??# ????????????????????????? | | ???????????????????????# ????????????????????????? | | ???????????????????????# ????????????????????????? | | ???????????????????????# ????????????????????????? | | ???????????????????????? ????????????????????????? | | ???????????????????????? ????????????????????????? | | ???????????????????????? ????????????????????????? | | ?????????????????????????????????????????????????? | | ?????????????????????????????????????????????????? | | ?????????????????????????????????????????????????? | | ?????????????????????????????????????????????????? | | ?????????????????????????????????????????????????? | | ?????????????????????????????????????????????????? | | ?????????????????????????????????????????????????? | | ?????????????????????????????????????????????????? | | ?????????????????????????????????????????????????? | +----------------------------------------------------+ Best States ------------- Heat Dissipation 42 Energy Generation 20 Energy Capacity 250 Matter Stores 300 Matter Capacity 500 Sight Range 16 Terrain Scan Range 16 Terrain Scan Density 10 Resistance: KI 18 Evasion (%) 55 Recoil Reduction 1 Item Schematics ----------------- None Robot Schematics ------------------ None Fabricated ------------ Nothing Repaired ---------- Nothing Studied --------- None Alien Tech Used ----------------- None Achievements -------------- None Challenges ------------ None Game ------ Seed ChaosArcDetector Manual? 0 Play Time 00:17:05 Cumulative 212.9 hours Start 2026.08.31 @ 22:33:35 End 2026.09.04 @ 18:51:13 Sessions 3 Manual Loads 0 Difficulty Rogue Special Mode None Game No. 346 Rogue 342 Adventurer 0 Explorer 4 Win Type - Total 0 Types 0/0/0/0/0/0/0/0/0/0 Lore% 34 Gallery% 44 Achievement% 31 Wizard Run 0 Options --------- Layout 0 ASCII 0 Keyboard 1 Movement Arrows Keybinds 0 Fullscreen 1 Font 24/Crisp Map View 183x50 Zoom Use 0% Tactical HUD 1 Map Filters NONE Filters NONE Steam 1 RUN: 55b43cab-3984-465f-9d6d-8844c3601c47